[Event "Titled Tuesday Blitz January 25 2022"]
[White "Senthil Maran K"]
[Black "Rozhkov, Viacheslav"]
[WhiteFideId "25035681"]
[BlackFideId "4181484"]
[WhiteElo "2194"]
[BlackElo "2324"]
[Result "1-0"]
[Round "04"]
[TimeControl "180+1"]
[Date "2022.01.26"]
[WhiteClock "0:00:18"]
[BlackClock "0:00:18"]

1. d4 {[%clk 0:03:00]}  d5 {[%clk 0:02:43]} 2. Nf3 {[%clk 0:03:00]}  Nf6 {[%clk 0:02:43]} 3. g3 {[%clk 0:03:00]}  e6 {[%clk 0:02:42]} 4. Bg2 {[%clk 0:03:00]}  Be7 {[%clk 0:02:43]} 5. c4 {[%clk 0:03:00]}  O-O {[%clk 0:02:44]} 6. Qc2 {[%clk 0:03:00]}  dxc4 {[%clk 0:02:43]} 7. Qxc4 {[%clk 0:03:00]}  Nc6 {[%clk 0:02:43]} 8. O-O {[%clk 0:02:59]}  a6 {[%clk 0:02:44]} 9. Bf4 {[%clk 0:02:51]}  Bd7 {[%clk 0:02:43]} 10. Nbd2 {[%clk 0:02:44]}  Rc8 {[%clk 0:02:43]} 11. Nb3 {[%clk 0:02:43]}  Nd5 {[%clk 0:02:40]} 12. Rac1 {[%clk 0:02:41]}  Nxf4 {[%clk 0:02:40]} 13. gxf4 {[%clk 0:02:42]}  b5 {[%clk 0:02:35]} 14. Qc2 {[%clk 0:02:37]}  Nb4 {[%clk 0:02:35]} 15. Qb1 {[%clk 0:02:35]}  Nd5 {[%clk 0:02:23]} 16. e3 {[%clk 0:02:34]}  f6 {[%clk 0:02:08]} 17. Nc5 {[%clk 0:02:33]}  Bxc5 {[%clk 0:02:04]} 18. Rxc5 {[%clk 0:02:34]}  Qe8 {[%clk 0:02:02]} 19. Rfc1 {[%clk 0:02:32]}  c6 {[%clk 0:01:51]} 20. Nd2 {[%clk 0:02:27]}  e5 {[%clk 0:01:18]} 21. fxe5 {[%clk 0:01:47]}  fxe5 {[%clk 0:01:17]} 22. Qe4 {[%clk 0:01:43]}  Qf7 {[%clk 0:01:09]} 23. Nf3 {[%clk 0:01:13]}  exd4 {[%clk 0:00:55]} 24. Qxd4 {[%clk 0:01:11]}  Bh3 {[%clk 0:00:49]} 25. Bxh3 {[%clk 0:01:06]}  Qxf3 {[%clk 0:00:47]} 26. Be6+ {[%clk 0:00:41]}  Kh8 {[%clk 0:00:47]} 27. Qh4 {[%clk 0:00:27]}  Nxe3 {[%clk 0:00:31]} 28. Qg3 {[%clk 0:00:20]}  Qxg3+ {[%clk 0:00:19]} 29. hxg3 {[%clk 0:00:21]}  Nc4 {[%clk 0:00:16]} 30. Bxc4 {[%clk 0:00:20]}  bxc4 {[%clk 0:00:16]} 31. R1xc4 {[%clk 0:00:21]}  Rb8 {[%clk 0:00:17]} 32. b4 {[%clk 0:00:20]}  Rbd8 {[%clk 0:00:18]} 33. Rxc6 {[%clk 0:00:19]}  Rd1+ {[%clk 0:00:18]} 34. Kg2 {[%clk 0:00:19]}  Rd2 {[%clk 0:00:19]} 35. Rf4 {[%clk 0:00:18]}  Rxf4 {[%clk 0:00:18]} 36. Rc8+ {[%clk 0:00:18]} 1-0


[Site "https://www.chess.com"]

[Event "Titled Tuesday Blitz January 25 2022"]
[White "Silich, Yahor"]
[Black "Badmatsyrenov, Oleg"]
[WhiteFideId "13513656"]
[BlackFideId "24115762"]
[WhiteElo "2101"]
[BlackElo "2403"]
[Result "1-0"]
[Round "04"]
[TimeControl "180+1"]
[Date "2022.01.26"]
[WhiteClock "0:00:37"]
[BlackClock "0:01:45"]

1. e4 {[%clk 0:03:00]}  c5 {[%clk 0:02:56]} 2. Nf3 {[%clk 0:03:00]}  e6 {[%clk 0:02:55]} 3. Nc3 {[%clk 0:03:00]}  a6 {[%clk 0:02:55]} 4. d4 {[%clk 0:03:00]}  cxd4 {[%clk 0:02:56]} 5. Nxd4 {[%clk 0:03:00]}  b5 {[%clk 0:02:56]} 6. Bd3 {[%clk 0:03:00]}  Qb6 {[%clk 0:02:56]} 7. Nf3 {[%clk 0:03:00]}  Qc7 {[%clk 0:02:56]} 8. O-O {[%clk 0:03:00]}  Bb7 {[%clk 0:02:57]} 9. Re1 {[%clk 0:03:00]}  Bc5 {[%clk 0:02:56]} 10. Qd2 {[%clk 0:02:59]}  Be7 {[%clk 0:02:54]} 11. Qe2 {[%clk 0:02:44]}  Nc6 {[%clk 0:02:50]} 12. e5 {[%clk 0:02:19]}  f5 {[%clk 0:02:47]} 13. Bf4 {[%clk 0:02:08]}  Nd8 {[%clk 0:02:45]} 14. Qe3 {[%clk 0:01:51]}  Nf7 {[%clk 0:02:39]} 15. Bxf5 {[%clk 0:01:50]}  exf5 {[%clk 0:02:33]} 16. e6 {[%clk 0:01:50]}  Nd6 {[%clk 0:02:32]} 17. exd7+ {[%clk 0:01:46]}  Qxd7 {[%clk 0:02:33]} 18. Rad1 {[%clk 0:01:40]}  O-O-O {[%clk 0:02:28]} 19. Ne5 {[%clk 0:01:39]}  Qc7 {[%clk 0:02:20]} 20. Nf7 {[%clk 0:01:14]}  Qc6 {[%clk 0:02:21]} 21. Qe6+ {[%clk 0:01:15]}  Kb8 {[%clk 0:02:18]} 22. Nd5 {[%clk 0:01:12]}  Nf6 {[%clk 0:01:52]} 23. Nxd8 {[%clk 0:01:05]}  Rxd8 {[%clk 0:01:44]} 24. Qxe7 {[%clk 0:01:05]}  Rd7 {[%clk 0:01:45]} 25. Qf8+ {[%clk 0:00:42]}  Ka7 {[%clk 0:01:45]} 26. Be3+ {[%clk 0:00:37]} 1-0


[Site "https://www.chess.com"]

[Event "Titled Tuesday Blitz January 25 2022"]
[White "Sjugirov, Sanan"]
[Black "Ruperez Benito, Antonio"]
[WhiteFideId "4189302"]
[BlackFideId "22245049"]
[WhiteElo "2979"]
[BlackElo "2781"]
[Result "1-0"]
[Round "04"]
[TimeControl "180+1"]
[Date "2022.01.26"]
[WhiteClock "0:00:27"]
[BlackClock "0:00:04"]

1. e4 {[%clk 0:03:00]}  c5 {[%clk 0:02:57]} 2. Nf3 {[%clk 0:03:01]}  e6 {[%clk 0:02:51]} 3. d3 {[%clk 0:02:54]}  Nc6 {[%clk 0:02:50]} 4. g3 {[%clk 0:02:53]}  g6 {[%clk 0:02:50]} 5. Bg2 {[%clk 0:02:53]}  Bg7 {[%clk 0:02:51]} 6. Qe2 {[%clk 0:02:44]}  Nge7 {[%clk 0:02:51]} 7. h4 {[%clk 0:02:44]}  h6 {[%clk 0:02:49]} 8. O-O {[%clk 0:02:43]}  O-O {[%clk 0:02:48]} 9. c3 {[%clk 0:02:41]}  d5 {[%clk 0:02:42]} 10. e5 {[%clk 0:02:40]}  b6 {[%clk 0:02:35]} 11. Bf4 {[%clk 0:02:40]}  a5 {[%clk 0:02:33]} 12. a4 {[%clk 0:02:39]}  Ba6 {[%clk 0:02:32]} 13. Na3 {[%clk 0:02:37]}  Na7 {[%clk 0:02:03]} 14. c4 {[%clk 0:02:24]}  Rc8 {[%clk 0:01:59]} 15. Rfe1 {[%clk 0:02:19]}  Bb7 {[%clk 0:01:58]} 16. b3 {[%clk 0:02:15]}  d4 {[%clk 0:01:56]} 17. Nb1 {[%clk 0:01:55]}  Qc7 {[%clk 0:01:38]} 18. Nbd2 {[%clk 0:01:54]}  Rcd8 {[%clk 0:01:13]} 19. Ne4 {[%clk 0:01:54]}  Nec8 {[%clk 0:01:10]} 20. Nf6+ {[%clk 0:01:50]}  Kh8 {[%clk 0:01:09]} 21. Qd2 {[%clk 0:01:48]}  Bxf3 {[%clk 0:00:52]} 22. Bxf3 {[%clk 0:01:47]}  Ne7 {[%clk 0:00:53]} 23. Bxh6 {[%clk 0:01:44]}  Ng8 {[%clk 0:00:53]} 24. Bxg7+ {[%clk 0:01:24]}  Kxg7 {[%clk 0:00:54]} 25. Qg5 {[%clk 0:01:24]}  Nc6 {[%clk 0:00:54]} 26. Bxc6 {[%clk 0:01:21]}  Qxc6 {[%clk 0:00:52]} 27. Re4 {[%clk 0:01:19]}  Qc7 {[%clk 0:00:25]} 28. h5 {[%clk 0:01:18]}  Qe7 {[%clk 0:00:21]} 29. Rf4 {[%clk 0:01:13]}  Qb7 {[%clk 0:00:16]} 30. f3 {[%clk 0:01:11]}  Nh6 {[%clk 0:00:14]} 31. Kf2 {[%clk 0:01:06]}  Rh8 {[%clk 0:00:13]} 32. Rh1 {[%clk 0:00:55]}  Nf5 {[%clk 0:00:14]} 33. g4 {[%clk 0:00:51]}  Ne3 {[%clk 0:00:12]} 34. Ne4 {[%clk 0:00:40]}  Qc7 {[%clk 0:00:08]} 35. Qf6+ {[%clk 0:00:36]}  Kg8 {[%clk 0:00:07]} 36. Ng5 {[%clk 0:00:28]}  Rf8 {[%clk 0:00:04]} 37. h6 {[%clk 0:00:27]}  Rh7 {[%clk 0:00:04]} 38. Nxh7 {[%clk 0:00:27]} 1-0


[Site "https://www.chess.com"]

[Event "Titled Tuesday Blitz January 25 2022"]
[White "Song, Michael"]
[Black "Bryakin, Mikhail"]
[WhiteFideId "2613190"]
[BlackFideId "4165314"]
[WhiteElo "2274"]
[BlackElo "2421"]
[Result "1/2-1/2"]
[Round "04"]
[TimeControl "180+1"]
[Date "2022.01.26"]
[WhiteClock "0:00:23"]
[BlackClock "0:00:33"]

1. e4 {[%clk 0:03:00]}  e6 {[%clk 0:02:51]} 2. d4 {[%clk 0:03:00]}  d5 {[%clk 0:02:51]} 3. Nc3 {[%clk 0:03:01]}  Bb4 {[%clk 0:02:42]} 4. e5 {[%clk 0:03:01]}  c5 {[%clk 0:02:42]} 5. a3 {[%clk 0:03:00]}  Ba5 {[%clk 0:02:41]} 6. b4 {[%clk 0:02:55]}  cxd4 {[%clk 0:02:38]} 7. Nb5 {[%clk 0:02:54]}  Bb6 {[%clk 0:02:37]} 8. Nf3 {[%clk 0:02:52]}  Nc6 {[%clk 0:02:35]} 9. Bb2 {[%clk 0:02:49]}  h6 {[%clk 0:02:33]} 10. Nbxd4 {[%clk 0:02:43]}  Nxd4 {[%clk 0:02:33]} 11. Bxd4 {[%clk 0:02:42]}  Ne7 {[%clk 0:02:32]} 12. c4 {[%clk 0:02:40]}  dxc4 {[%clk 0:02:31]} 13. Bxc4 {[%clk 0:02:39]}  Nf5 {[%clk 0:02:29]} 14. Bb5+ {[%clk 0:02:33]}  Bd7 {[%clk 0:02:28]} 15. Bxb6 {[%clk 0:02:18]}  axb6 {[%clk 0:02:29]} 16. Qxd7+ {[%clk 0:02:18]}  Qxd7 {[%clk 0:02:30]} 17. Bxd7+ {[%clk 0:02:18]}  Kxd7 {[%clk 0:02:31]} 18. O-O-O+ {[%clk 0:02:19]}  Ke7 {[%clk 0:02:22]} 19. Kb2 {[%clk 0:02:20]}  h5 {[%clk 0:02:16]} 20. Rd3 {[%clk 0:02:18]}  Rhd8 {[%clk 0:02:15]} 21. Rhd1 {[%clk 0:02:17]}  Rxd3 {[%clk 0:02:15]} 22. Rxd3 {[%clk 0:02:18]}  f6 {[%clk 0:02:10]} 23. Kb3 {[%clk 0:02:09]}  b5 {[%clk 0:01:43]} 24. Rc3 {[%clk 0:02:07]}  Rd8 {[%clk 0:01:38]} 25. Rc5 {[%clk 0:01:57]}  Rd3+ {[%clk 0:01:37]} 26. Kb2 {[%clk 0:01:55]}  Rd5 {[%clk 0:01:36]} 27. exf6+ {[%clk 0:01:42]}  gxf6 {[%clk 0:01:33]} 28. Rxd5 {[%clk 0:01:41]}  exd5 {[%clk 0:01:33]} 29. Kc3 {[%clk 0:01:42]}  Kd6 {[%clk 0:01:26]} 30. Nd4 {[%clk 0:01:42]}  Nxd4 {[%clk 0:01:13]} 31. Kxd4 {[%clk 0:01:43]}  Ke6 {[%clk 0:01:05]} 32. f3 {[%clk 0:01:04]}  h4 {[%clk 0:00:52]} 33. g4 {[%clk 0:00:56]}  h3 {[%clk 0:00:43]} 34. f4 {[%clk 0:00:52]}  b6 {[%clk 0:00:38]} 35. Ke3 {[%clk 0:00:46]}  Kd6 {[%clk 0:00:29]} 36. Kd4 {[%clk 0:00:30]}  Ke6 {[%clk 0:00:29]} 37. g5 {[%clk 0:00:19]}  Kf5 {[%clk 0:00:29]} 38. gxf6 {[%clk 0:00:17]}  Kxf6 {[%clk 0:00:29]} 39. Kxd5 {[%clk 0:00:18]}  Kf5 {[%clk 0:00:30]} 40. Kc6 {[%clk 0:00:18]}  Kxf4 {[%clk 0:00:30]} 41. Kxb5 {[%clk 0:00:19]}  Kf3 {[%clk 0:00:31]} 42. a4 {[%clk 0:00:20]}  Kg2 {[%clk 0:00:31]} 43. a5 {[%clk 0:00:20]}  bxa5 {[%clk 0:00:30]} 44. bxa5 {[%clk 0:00:21]}  Kxh2 {[%clk 0:00:30]} 45. a6 {[%clk 0:00:22]}  Kg1 {[%clk 0:00:30]} 46. a7 {[%clk 0:00:22]}  h2 {[%clk 0:00:31]} 47. a8=Q {[%clk 0:00:22]}  h1=Q {[%clk 0:00:32]} 48. Qxh1+ {[%clk 0:00:23]}  Kxh1 {[%clk 0:00:33]} 1/2-1/2


[Site "https://www.chess.com"]

[Event "Titled Tuesday Blitz January 25 2022"]
[White "Stribuk, Artiom"]
[Black "Dastan, Muhammed Batuhan"]
[WhiteFideId "13515659"]
[BlackFideId "6300014"]
[WhiteElo "2224"]
[BlackElo "2410"]
[Result "0-1"]
[Round "04"]
[TimeControl "180+1"]
[Date "2022.01.26"]
[WhiteClock "0:00:01"]
[BlackClock "0:00:20"]

1. d4 {[%clk 0:03:00]}  d5 {[%clk 0:03:00]} 2. c4 {[%clk 0:02:57]}  c6 {[%clk 0:03:00]} 3. Nf3 {[%clk 0:02:56]}  Nf6 {[%clk 0:03:00]} 4. g3 {[%clk 0:02:54]}  dxc4 {[%clk 0:03:00]} 5. Bg2 {[%clk 0:02:54]}  g6 {[%clk 0:03:00]} 6. Ne5 {[%clk 0:02:44]}  Be6 {[%clk 0:02:26]} 7. Na3 {[%clk 0:02:32]}  Bd5 {[%clk 0:02:19]} 8. f3 {[%clk 0:02:18]}  b5 {[%clk 0:02:19]} 9. e4 {[%clk 0:02:17]}  Be6 {[%clk 0:02:19]} 10. O-O {[%clk 0:02:15]}  Bg7 {[%clk 0:02:19]} 11. Be3 {[%clk 0:02:13]}  O-O {[%clk 0:02:19]} 12. b3 {[%clk 0:02:08]}  cxb3 {[%clk 0:02:13]} 13. axb3 {[%clk 0:02:09]}  Nfd7 {[%clk 0:02:10]} 14. Nd3 {[%clk 0:02:03]}  Re8 {[%clk 0:02:08]} 15. Qc2 {[%clk 0:01:44]}  Nf8 {[%clk 0:01:55]} 16. Rfc1 {[%clk 0:01:36]}  Bxd4 {[%clk 0:01:53]} 17. Bxd4 {[%clk 0:01:12]}  Qxd4+ {[%clk 0:01:54]} 18. Kh1 {[%clk 0:01:12]}  Qb6 {[%clk 0:01:54]} 19. Nc5 {[%clk 0:01:12]}  Nbd7 {[%clk 0:01:54]} 20. Nxe6 {[%clk 0:01:12]}  Nxe6 {[%clk 0:01:55]} 21. Qxc6 {[%clk 0:01:12]}  Qxc6 {[%clk 0:01:48]} 22. Rxc6 {[%clk 0:01:13]}  a6 {[%clk 0:01:21]} 23. f4 {[%clk 0:00:52]}  Nd4 {[%clk 0:01:08]} 24. Rc7 {[%clk 0:00:47]}  Nxb3 {[%clk 0:01:05]} 25. Rb1 {[%clk 0:00:31]}  Ndc5 {[%clk 0:01:06]} 26. e5 {[%clk 0:00:30]}  Rac8 {[%clk 0:01:05]} 27. Ra7 {[%clk 0:00:30]}  e6 {[%clk 0:01:00]} 28. h4 {[%clk 0:00:29]}  Red8 {[%clk 0:00:58]} 29. Nc2 {[%clk 0:00:24]}  Rd2 {[%clk 0:00:56]} 30. Ne3 {[%clk 0:00:20]}  h5 {[%clk 0:00:53]} 31. Bb7 {[%clk 0:00:09]}  Rd7 {[%clk 0:00:42]} 32. Bxc8 {[%clk 0:00:06]}  Rxa7 {[%clk 0:00:43]} 33. Rd1 {[%clk 0:00:06]}  Kf8 {[%clk 0:00:35]} 34. g4 {[%clk 0:00:06]}  Ke7 {[%clk 0:00:32]} 35. gxh5 {[%clk 0:00:06]}  Rc7 {[%clk 0:00:31]} 36. hxg6 {[%clk 0:00:04]}  fxg6 {[%clk 0:00:26]} 37. Bxa6 {[%clk 0:00:04]}  Nxa6 {[%clk 0:00:27]} 38. Rd6 {[%clk 0:00:04]}  Nbc5 {[%clk 0:00:24]} 39. Rb6 {[%clk 0:00:04]}  Rb7 {[%clk 0:00:24]} 40. Rc6 {[%clk 0:00:05]}  b4 {[%clk 0:00:25]} 41. Nc4 {[%clk 0:00:06]}  b3 {[%clk 0:00:25]} 42. Nb2 {[%clk 0:00:06]}  Rb4 {[%clk 0:00:22]} 43. Kg2 {[%clk 0:00:02]}  Rxf4 {[%clk 0:00:22]} 44. Kg3 {[%clk 0:00:03]}  Re4 {[%clk 0:00:22]} 45. Rb6 {[%clk 0:00:03]}  Rxe5 {[%clk 0:00:22]} 46. Nc4 {[%clk 0:00:04]}  Rd5 {[%clk 0:00:22]} 47. Kf4 {[%clk 0:00:03]}  Rd4+ {[%clk 0:00:23]} 48. Kg5 {[%clk 0:00:01]}  Rxc4 {[%clk 0:00:23]} 49. Kxg6 {[%clk 0:00:02]}  Rb4 {[%clk 0:00:21]} 50. Rc6 {[%clk 0:00:02]}  b2 {[%clk 0:00:20]} 51. Kg5 {[%clk 0:00:01]}  b1=Q {[%clk 0:00:20]} 0-1


[Site "https://www.chess.com"]

[Event "Titled Tuesday Blitz January 25 2022"]
[White "Sychev, Klementy"]
[Black "Shkapenko, Pavel"]
[WhiteFideId "4114060"]
[BlackFideId "4151933"]
[WhiteElo "2944"]
[BlackElo "2759"]
[Result "1/2-1/2"]
[Round "04"]
[TimeControl "180+1"]
[Date "2022.01.26"]
[WhiteClock "0:00:02"]
[BlackClock "0:00:20"]

1. e4 {[%clk 0:02:48]}  e5 {[%clk 0:02:58]} 2. Nf3 {[%clk 0:02:48]}  Nc6 {[%clk 0:02:57]} 3. Bb5 {[%clk 0:02:48]}  Bc5 {[%clk 0:02:57]} 4. c3 {[%clk 0:02:44]}  f5 {[%clk 0:02:56]} 5. d4 {[%clk 0:02:39]}  fxe4 {[%clk 0:02:56]} 6. Bxc6 {[%clk 0:02:39]}  dxc6 {[%clk 0:02:56]} 7. Nxe5 {[%clk 0:02:39]}  Qd5 {[%clk 0:02:56]} 8. Bf4 {[%clk 0:02:14]}  Bd6 {[%clk 0:02:54]} 9. O-O {[%clk 0:02:04]}  Nf6 {[%clk 0:02:53]} 10. Nd2 {[%clk 0:01:55]}  O-O {[%clk 0:02:52]} 11. Nb3 {[%clk 0:01:38]}  Ng4 {[%clk 0:02:42]} 12. Bg3 {[%clk 0:01:36]}  Bxe5 {[%clk 0:02:07]} 13. dxe5 {[%clk 0:01:36]}  Be6 {[%clk 0:02:06]} 14. h3 {[%clk 0:01:22]}  Nh6 {[%clk 0:02:04]} 15. Qxd5 {[%clk 0:00:52]}  Bxd5 {[%clk 0:01:57]} 16. Rfe1 {[%clk 0:00:51]}  Nf5 {[%clk 0:01:55]} 17. Bh2 {[%clk 0:00:50]}  b6 {[%clk 0:01:43]} 18. Nd2 {[%clk 0:00:42]}  e3 {[%clk 0:01:43]} 19. fxe3 {[%clk 0:00:42]}  Nh4 {[%clk 0:01:38]} 20. e4 {[%clk 0:00:39]}  Be6 {[%clk 0:01:39]} 21. Bg3 {[%clk 0:00:37]}  Rad8 {[%clk 0:01:36]} 22. Nb3 {[%clk 0:00:35]}  Ng6 {[%clk 0:01:17]} 23. Nd4 {[%clk 0:00:34]}  Rde8 {[%clk 0:00:59]} 24. Nxc6 {[%clk 0:00:25]}  Bd7 {[%clk 0:00:59]} 25. Nd4 {[%clk 0:00:26]}  Nxe5 {[%clk 0:00:59]} 26. Bxe5 {[%clk 0:00:25]}  Rxe5 {[%clk 0:00:59]} 27. Nf3 {[%clk 0:00:26]}  Re7 {[%clk 0:00:59]} 28. Re3 {[%clk 0:00:24]}  Rfe8 {[%clk 0:00:53]} 29. Rae1 {[%clk 0:00:24]}  c5 {[%clk 0:00:50]} 30. e5 {[%clk 0:00:20]}  Bc6 {[%clk 0:00:49]} 31. Nd2 {[%clk 0:00:20]}  Bd5 {[%clk 0:00:48]} 32. c4 {[%clk 0:00:19]}  Bc6 {[%clk 0:00:48]} 33. b3 {[%clk 0:00:19]}  Kf7 {[%clk 0:00:48]} 34. Ne4 {[%clk 0:00:18]}  Bxe4 {[%clk 0:00:47]} 35. Rxe4 {[%clk 0:00:18]}  Ke6 {[%clk 0:00:47]} 36. Kf2 {[%clk 0:00:12]}  Rd7 {[%clk 0:00:47]} 37. R1e2 {[%clk 0:00:12]}  Rd3 {[%clk 0:00:44]} 38. h4 {[%clk 0:00:11]}  Rf8+ {[%clk 0:00:45]} 39. Kg1 {[%clk 0:00:11]}  Rf5 {[%clk 0:00:39]} 40. Kh2 {[%clk 0:00:10]}  h5 {[%clk 0:00:36]} 41. Kg1 {[%clk 0:00:09]}  a5 {[%clk 0:00:29]} 42. Kh2 {[%clk 0:00:08]}  Rf1 {[%clk 0:00:24]} 43. R4e3 {[%clk 0:00:05]}  Rd4 {[%clk 0:00:22]} 44. Rh3 {[%clk 0:00:03]}  Rf5 {[%clk 0:00:19]} 45. Kg1 {[%clk 0:00:02]}  Rd1+ {[%clk 0:00:19]} 46. Kh2 {[%clk 0:00:02]}  Rd4 {[%clk 0:00:19]} 47. Kg1 {[%clk 0:00:02]}  Rd1+ {[%clk 0:00:19]} 48. Kh2 {[%clk 0:00:02]}  Rd4 {[%clk 0:00:20]} 1/2-1/2


[Site "https://www.chess.com"]

[Event "Titled Tuesday Blitz January 25 2022"]
[White "Tikhonov, Viacheslav"]
[Black "Obolenskikh, Dmitry"]
[WhiteFideId "44196407"]
[BlackFideId "4156013"]
[WhiteElo "1773"]
[BlackElo "2512"]
[Result "0-1"]
[Round "04"]
[TimeControl "180+1"]
[Date "2022.01.26"]
[WhiteClock "0:00:20"]
[BlackClock "0:01:01"]

1. d4 {[%clk 0:03:00]}  d6 {[%clk 0:02:57]} 2. Nf3 {[%clk 0:02:59]}  Bg4 {[%clk 0:02:57]} 3. c4 {[%clk 0:02:58]}  Bxf3 {[%clk 0:02:56]} 4. exf3 {[%clk 0:02:59]}  c6 {[%clk 0:02:55]} 5. Nc3 {[%clk 0:02:55]}  Nf6 {[%clk 0:02:55]} 6. Qb3 {[%clk 0:02:55]}  Qb6 {[%clk 0:02:54]} 7. Be3 {[%clk 0:02:53]}  d5 {[%clk 0:02:47]} 8. cxd5 {[%clk 0:02:44]}  Qxb3 {[%clk 0:02:47]} 9. axb3 {[%clk 0:02:45]}  Nxd5 {[%clk 0:02:47]} 10. Nxd5 {[%clk 0:02:41]}  cxd5 {[%clk 0:02:48]} 11. Bb5+ {[%clk 0:02:37]}  Nc6 {[%clk 0:02:47]} 12. Kd2 {[%clk 0:02:36]}  e6 {[%clk 0:02:41]} 13. Rhc1 {[%clk 0:02:36]}  Bb4+ {[%clk 0:02:40]} 14. Ke2 {[%clk 0:02:31]}  Kd7 {[%clk 0:02:40]} 15. Ra4 {[%clk 0:02:29]}  a5 {[%clk 0:02:21]} 16. Bd2 {[%clk 0:02:22]}  Bxd2 {[%clk 0:02:07]} 17. Kxd2 {[%clk 0:02:23]}  Kd6 {[%clk 0:02:05]} 18. Bxc6 {[%clk 0:02:21]}  bxc6 {[%clk 0:02:05]} 19. Rc5 {[%clk 0:02:21]}  Rhb8 {[%clk 0:02:00]} 20. Rcxa5 {[%clk 0:01:56]}  Rxa5 {[%clk 0:01:58]} 21. Rxa5 {[%clk 0:01:56]}  Rxb3 {[%clk 0:01:59]} 22. Kc2 {[%clk 0:01:57]}  Rb7 {[%clk 0:01:58]} 23. f4 {[%clk 0:01:52]}  f6 {[%clk 0:01:52]} 24. Kc3 {[%clk 0:01:47]}  h6 {[%clk 0:01:47]} 25. b4 {[%clk 0:01:45]}  g5 {[%clk 0:01:47]} 26. fxg5 {[%clk 0:01:41]}  hxg5 {[%clk 0:01:48]} 27. Ra8 {[%clk 0:01:38]}  g4 {[%clk 0:01:45]} 28. Rh8 {[%clk 0:01:33]}  Ra7 {[%clk 0:01:40]} 29. Rd8+ {[%clk 0:01:17]}  Ke7 {[%clk 0:01:39]} 30. Rg8 {[%clk 0:01:10]}  Ra2 {[%clk 0:01:38]} 31. Rxg4 {[%clk 0:01:08]}  Rxf2 {[%clk 0:01:37]} 32. h4 {[%clk 0:01:04]}  Rf1 {[%clk 0:01:35]} 33. Kc2 {[%clk 0:00:58]}  e5 {[%clk 0:01:21]} 34. Rg7+ {[%clk 0:00:51]}  Ke6 {[%clk 0:01:20]} 35. dxe5 {[%clk 0:00:44]}  fxe5 {[%clk 0:01:20]} 36. h5 {[%clk 0:00:44]}  Rh1 {[%clk 0:01:08]} 37. g4 {[%clk 0:00:44]}  d4 {[%clk 0:01:08]} 38. Rc7 {[%clk 0:00:21]}  Kd6 {[%clk 0:01:07]} 39. Rg7 {[%clk 0:00:22]}  Kd5 {[%clk 0:01:05]} 40. Rd7+ {[%clk 0:00:22]}  Kc4 {[%clk 0:01:01]} 41. Rd6 {[%clk 0:00:22]}  Rh2+ {[%clk 0:01:01]} 42. Kd1 {[%clk 0:00:21]}  Kd3 {[%clk 0:01:01]} 43. Ke1 {[%clk 0:00:21]}  e4 {[%clk 0:01:01]} 44. h6 {[%clk 0:00:21]}  e3 {[%clk 0:01:01]} 45. Kf1 {[%clk 0:00:20]}  e2+ {[%clk 0:01:01]} 0-1


[Site "https://www.chess.com"]

[Event "Titled Tuesday Blitz January 25 2022"]
[White "Triapishko, Alexandr"]
[Black "Vakhlamov, Igor L."]
[WhiteFideId "14122286"]
[BlackFideId "24126748"]
[WhiteElo "2479"]
[BlackElo "2401"]
[Result "1/2-1/2"]
[Round "04"]
[TimeControl "180+1"]
[Date "2022.01.26"]
[WhiteClock "0:00:04"]
[BlackClock "0:00:24"]

1. d4 {[%clk 0:02:45]}  d5 {[%clk 0:02:57]} 2. c4 {[%clk 0:02:42]}  c6 {[%clk 0:02:58]} 3. Nf3 {[%clk 0:02:39]}  Nf6 {[%clk 0:02:57]} 4. g3 {[%clk 0:02:25]}  Bf5 {[%clk 0:02:57]} 5. Bg2 {[%clk 0:02:22]}  e6 {[%clk 0:02:57]} 6. Qb3 {[%clk 0:02:17]}  Qb6 {[%clk 0:02:55]} 7. c5 {[%clk 0:02:16]}  Qa6 {[%clk 0:02:55]} 8. O-O {[%clk 0:02:14]}  b6 {[%clk 0:02:51]} 9. cxb6 {[%clk 0:02:07]}  axb6 {[%clk 0:02:52]} 10. Nc3 {[%clk 0:02:07]}  Be7 {[%clk 0:02:47]} 11. Ne5 {[%clk 0:01:47]}  O-O {[%clk 0:02:41]} 12. Bf4 {[%clk 0:01:47]}  c5 {[%clk 0:02:27]} 13. e3 {[%clk 0:01:19]}  Rc8 {[%clk 0:02:13]} 14. Rfc1 {[%clk 0:01:02]}  Nc6 {[%clk 0:02:07]} 15. Qb5 {[%clk 0:00:37]}  Nxe5 {[%clk 0:02:00]} 16. Qxa6 {[%clk 0:00:34]}  Rxa6 {[%clk 0:02:01]} 17. dxe5 {[%clk 0:00:28]}  Nh5 {[%clk 0:02:01]} 18. e4 {[%clk 0:00:23]}  Nxf4 {[%clk 0:01:54]} 19. gxf4 {[%clk 0:00:23]}  dxe4 {[%clk 0:01:49]} 20. Bxe4 {[%clk 0:00:23]}  Bxe4 {[%clk 0:01:42]} 21. Nxe4 {[%clk 0:00:24]}  Ra4 {[%clk 0:01:42]} 22. f3 {[%clk 0:00:24]}  f5 {[%clk 0:01:38]} 23. exf6 {[%clk 0:00:23]}  Bxf6 {[%clk 0:01:38]} 24. Nxf6+ {[%clk 0:00:17]}  gxf6 {[%clk 0:01:39]} 25. Re1 {[%clk 0:00:18]}  Kf7 {[%clk 0:01:38]} 26. Rad1 {[%clk 0:00:17]}  Rc6 {[%clk 0:01:33]} 27. f5 {[%clk 0:00:15]}  exf5 {[%clk 0:01:26]} 28. Rd7+ {[%clk 0:00:15]}  Kg6 {[%clk 0:01:26]} 29. a3 {[%clk 0:00:16]}  Rd4 {[%clk 0:01:22]} 30. Rxd4 {[%clk 0:00:08]}  cxd4 {[%clk 0:01:23]} 31. Rd1 {[%clk 0:00:09]}  Rc2 {[%clk 0:01:21]} 32. Rxd4 {[%clk 0:00:07]}  Rxb2 {[%clk 0:01:21]} 33. a4 {[%clk 0:00:05]}  Kg5 {[%clk 0:01:18]} 34. h4+ {[%clk 0:00:04]}  Kh5 {[%clk 0:01:18]} 35. Rf4 {[%clk 0:00:04]}  Kg6 {[%clk 0:01:16]} 36. Rd4 {[%clk 0:00:04]}  h6 {[%clk 0:01:07]} 37. Kf1 {[%clk 0:00:03]}  Ra2 {[%clk 0:00:57]} 38. Kg1 {[%clk 0:00:03]}  Kf7 {[%clk 0:00:53]} 39. h5 {[%clk 0:00:03]}  Rb2 {[%clk 0:00:50]} 40. Rd7+ {[%clk 0:00:02]}  Ke6 {[%clk 0:00:48]} 41. Rh7 {[%clk 0:00:02]}  Ra2 {[%clk 0:00:47]} 42. Rxh6 {[%clk 0:00:02]}  Rxa4 {[%clk 0:00:47]} 43. Rh8 {[%clk 0:00:02]}  Kf7 {[%clk 0:00:41]} 44. Kg2 {[%clk 0:00:03]}  Kg7 {[%clk 0:00:36]} 45. Rb8 {[%clk 0:00:03]}  Rb4 {[%clk 0:00:35]} 46. Kg3 {[%clk 0:00:03]}  Kh6 {[%clk 0:00:33]} 47. Rh8+ {[%clk 0:00:03]}  Kg7 {[%clk 0:00:30]} 48. Rb8 {[%clk 0:00:04]}  Kh7 {[%clk 0:00:29]} 49. Rc8 {[%clk 0:00:03]}  b5 {[%clk 0:00:26]} 50. Rf8 {[%clk 0:00:03]}  Kg7 {[%clk 0:00:26]} 51. Rb8 {[%clk 0:00:03]}  Kh6 {[%clk 0:00:26]} 52. Rh8+ {[%clk 0:00:03]}  Kg7 {[%clk 0:00:24]} 53. Rb8 {[%clk 0:00:03]}  Kh6 {[%clk 0:00:24]} 54. Rh8+ {[%clk 0:00:03]}  Kg7 {[%clk 0:00:24]} 55. Rb8 {[%clk 0:00:04]} 1/2-1/2


[Site "https://www.chess.com"]